bitfinex/quotes_ETHUSD_20240827
["timestamp","ask_amount","ask_price","bid_price","bid_amount"]
[1724726835565,1.55795708,2679.2,2679.1,5.49604035]
[1724726835960,1.55795708,2679.2,2679.1,9.22863035]
[1724726836202,1.94841958,2679.4,2679.1,9.22863035]
[1724726836203,1.55795708,2679.3,2679.1,9.22863035]
[1724726836405,1.55795708,2679.3,2679.2,3.73245]
[1724726836771,1.55795708,2679.4,2679.3,3.73231]
[1724726837102,1.9460706,2679.5,2679.3,3.73231]
[1724726837103,1.55795708,2679.5,2679.3,5.49604035]
[1724726837290,1.55795708,2679.7,2679.5,3.73203]
[1724726837491,1.55795708,2679.7,2679.6,5.49604035]
[1724726837691,1.55795708,2679.8,2679.7,3.73176]
[1724726838017,1.55795708,2679.9,2679.8,3.73162]
[1724726838169,1.9460706,2680.0,2679.8,3.73162]
[1724726838170,1.55795708,2680.0,2679.8,3.00144035]
[1724726838896,1.9460706,2680.2,2680.0,3.73124]
[1724726838897,1.55795708,2680.2,2680.0,3.73124]
[1724726839207,0.02018085,2680.8,2680.2,3.73098]
[1724726839208,1.55795708,2680.5,2680.2,3.73098]
[1724726839372,1.9460706,2680.7,2680.4,3.73078]
[1724726839373,1.55795708,2680.7,2680.4,3.73078]
[1724726839569,1.55795708,2680.8,2680.6,3.00144035]
[1724726841323,1.55795708,2680.9,2680.6,3.00144035]
[1724726842432,4.55795708,2681.0,2680.6,3.00144035]
[1724726842593,1.55795708,2681.0,2680.6,3.00144035]
[1724726842925,4.57813793,2681.1,2680.6,3.00144035]
[1724726843130,1.57813793,2681.1,2680.6,3.00144035]
[1724726843423,0.02018085,2681.1,2680.6,3.00144035]
[1724726843630,0.02018085,2681.1,2680.9,3.00144035]
[1724726843792,1.55795708,2681.3,2680.9,3.00144035]
[1724726843970,2.52851481,2681.4,2680.9,3.00144035]
[1724726843971,1.55795708,2681.4,2680.9,3.00144035]
[1724726844167,1.55795708,2681.4,2681.3,3.00144035]
[1724726844416,1.55795708,2681.7,2681.3,3.00144035]
[1724726844634,1.55795708,2681.8,2681.3,3.00144035]
[1724726844940,1.55795708,2681.8,2680.9,0.54960404]
[1724726844941,3.72991,2681.1,2680.6,2.4946]
[1724726845075,0.64455331,2681.0,2680.5,3.00144035]
[1724726845276,3.73023,2680.8,2680.6,1.002]
[1724726845470,3.73036,2680.7,2680.6,1.002]
[1724726845673,0.02165231,2680.8,2680.6,1.002]
[1724726845975,0.02165231,2680.7,2680.6,1.002]
[1724726846335,1.55795708,2681.3,2680.6,7.22709]
[1724726846476,1.93897357,2681.4,2681.0,3.00144035]
[1724726846477,3.0,2681.2,2681.0,3.00144035]
[1724726846811,3.0,2681.4,2681.1,2.4946]
[1724726847142,6.05611683,2681.8,2681.1,2.4946]
[1724726847143,0.38824326,2681.8,2681.3,3.00144035]
[1724726847315,0.02165231,2681.9,2681.3,3.00144035]
[1724726847316,0.02165231,2681.9,2681.7,3.00144035]
[1724726847773,3.72828,2682.2,2681.4,3.00144035]
[1724726847774,0.02165231,2682.1,2681.4,3.00144035]
[1724726847974,0.53078894,2682.0,2681.2,4.00582475]
[1724726848736,0.53078894,2682.0,2681.2,7.73538475]
[1724726849574,3.53078894,2682.0,2681.2,7.73538475]
[1724726851035,3.53078894,2682.0,2681.2,4.00582475]
[1724726851335,0.02165231,2681.8,2681.2,4.00582475]
[1724726851632,3.02165231,2681.8,2681.2,4.00582475]
[1724726852435,3.02165231,2681.8,2681.2,4.65586723]
[1724726852735,0.02165231,2681.8,2681.2,8.38549723]
[1724726853025,0.02165231,2681.8,2681.3,3.72949]
[1724726853344,0.02165231,2681.8,2681.2,4.65586723]
[1724726853632,2.50055231,2681.8,2681.2,4.65586723]
[1724726853829,3.0,2681.7,2681.2,4.00582475]
[1724726855575,0.02076943,2681.9,2681.2,4.00582475]
[1724726856214,0.02076943,2681.9,2681.2,7.73548475]
[1724726856418,0.02076943,2681.9,2681.4,3.72936]
[1724726856690,0.02076943,2681.9,2681.3,3.7295]
[1724726856892,0.02076943,2681.9,2681.4,0.77353248]
[1724726857131,0.02076943,2681.9,2681.2,4.00582475]
[1724726857331,3.72892,2681.8,2681.1,2.4946]
[1724726857540,6.72899,2681.7,2680.9,4.00582475]
[1724726857695,3.72939,2681.4,2680.6,5.00782475]
[1724726857894,3.72939,2681.4,2680.8,0.60306778]
[1724726858090,7.4589,2681.4,2680.8,0.60306778]
[1724726858294,7.4589,2681.4,2680.6,5.00782475]
[1724726858295,3.75034943,2681.3,2680.6,1.002]
[1724726858523,2.4789,2681.1,2680.6,1.002]
[1724726858923,6.20876,2681.1,2680.6,1.002]
[1724726859238,3.0,2681.0,2680.6,1.002]
[1724726860658,3.73036,2680.8,2680.6,1.002]
[1724726860791,3.75097943,2680.9,2680.6,1.002]
[1724726860995,3.0,2680.8,2680.6,1.002]
[1724726861404,3.0,2680.8,2680.6,0.952]
[1724726862737,3.02076943,2680.9,2680.6,0.952]
[1724726866751,6.75086943,2680.9,2680.6,0.952]
[1724726867757,3.02076943,2680.9,2680.6,0.952]
[1724726867927,3.0,2680.8,2680.6,0.952]
[1724726868137,0.02076943,2680.9,2680.6,0.952]
[1724726871559,0.02076943,2680.9,2680.6,3.4023]
[1724726872660,0.02076943,2680.9,2680.6,6.40899657]
[1724726873459,3.02157664,2681.2,2680.6,6.40899657]
[1724726874161,3.02157664,2681.2,2680.9,3.00669657]
[1724726877160,3.02157664,2681.2,2680.6,7.42296323]
[1724726877364,1.55795708,2681.1,2680.6,6.40899657]
[1724726877863,5.28779708,2681.1,2680.6,6.40899657]
[1724726878069,3.0,2681.0,2680.6,6.40899657]
[1724726878281,0.02157664,2681.0,2680.6,0.952]
[1724726878480,1.55795708,2681.1,2680.6,0.952]
[1724726878481,3.73036,2680.7,2680.6,0.952]
[1724726878826,6.73036,2680.7,2680.6,0.952]
[1724726879028,8.28831708,2680.7,2680.6,0.952]
[1724726879355,8.6718757,2680.7,2680.6,0.952]
[1724726879544,4.9415157,2680.7,2680.6,0.952]
[1724726879957,8.6718757,2680.7,2680.6,0.952]
[1724726880353,4.9415157,2680.7,2680.6,0.952]
[1724726880934,3.0,2680.7,2680.6,0.952]
[1724726881134,4.9415157,2680.7,2680.6,0.952]
[1724726881786,6.73036,2680.7,2680.6,0.952]
[1724726882283,9.0627679,2680.7,2680.6,0.952]
[1724726884543,5.3324079,2680.7,2680.6,0.952]
[1724726884847,3.0,2680.7,2680.6,0.952]
[1724726885053,1.94539133,2680.7,2680.6,6.24819657]
[1724726885403,1.55654066,2680.7,2680.6,7.24608923]
[1724726885548,1.55652422,2680.7,2680.6,7.24608923]
[1724726885888,1.55652422,2680.8,2680.6,7.24608923]
[1724726887598,1.55652422,2680.8,2680.7,2.2895]
[1724726887764,1.55652422,2680.9,2680.6,4.95658923]
[1724726887954,1.55652422,2681.0,2680.9,2.2895]
[1724726888155,1.94606243,2681.1,2681.0,3.00669657]
[1724726888156,1.55652422,2681.1,2681.0,3.00669657]
[1724726889268,1.55652422,2681.2,2681.0,3.00669657]
[1724726889665,1.55652422,2681.2,2681.1,2.2895]
[1724726889877,1.55652422,2681.2,2681.1,6.92193666]
[1724726890080,1.55652422,2681.3,2681.1,6.92193666]
[1724726890262,1.55652422,2681.4,2681.2,3.72959]
[1724726890491,1.55652422,2681.4,2681.3,3.00669657]
[1724726890705,1.55652422,2681.5,2681.4,2.2895]
[1724726891595,2.33527492,2681.9,2681.3,5.29619657]
[1724726891596,1.94606243,2681.6,2681.3,5.29619657]
[1724726891756,1.55640036,2681.4,2681.3,5.29619657]
[1724726891963,1.55640036,2681.5,2681.3,5.29619657]
[1724726893504,1.55640036,2681.5,2681.3,6.28903489]
[1724726893685,1.55640036,2681.6,2681.3,5.29619657]
[1724726893882,1.55597315,2681.4,2681.3,3.00669657]
[1724726895192,1.55597315,2681.4,2681.0,5.47299657]
[1724726895193,1.94606243,2681.4,2681.0,5.47299657]
[1724726895389,1.55596352,2681.2,2681.0,5.47299657]
[1724726896781,1.55596352,2681.2,2680.8,3.73015]
[1724726896782,1.944711,2681.2,2680.8,3.73019]
[1724726897108,1.55600503,2681.1,2681.0,3.00669657]
[1724726897717,1.55600503,2681.1,2681.0,9.20294657]
[1724726897881,1.55600503,2681.2,2681.0,5.47299657]
[1724726898249,1.55600503,2681.2,2681.0,9.20290657]
[1724726898456,1.55600503,2681.2,2681.0,10.49619423]
[1724726899105,1.55600503,2681.3,2681.1,3.7298]
[1724726899309,1.55600503,2681.3,2681.2,3.00669657]
[1724726901228,1.55600503,2681.4,2681.2,3.00669657]
[1724726901531,1.55600503,2681.4,2681.3,2.4663]
[1724726903764,4.55600503,2681.5,2681.3,2.4663]
[1724726903910,1.55600503,2681.5,2681.3,3.68192047]
[1724726904316,1.55600503,2681.6,2681.3,7.41144047]
[1724726904580,1.55600503,2681.6,2681.5,3.00669657]
[1724726905780,1.55600503,2681.7,2681.5,3.00669657]
[1724726906092,1.55600503,2681.7,2681.5,6.73592657]
[1724726906272,1.55600503,2681.8,2681.6,0.67359266]
[1724726907385,1.55600503,2681.8,2681.7,2.4663]
[1724726908387,1.55600503,2681.8,2681.5,5.47299657]
[1724726911467,1.55600503,2681.7,2681.2,3.00669657]
[1724726911705,1.55600503,2681.6,2681.2,3.00669657]
[1724726913161,1.55600503,2681.7,2681.2,3.00669657]
[1724726914139,3.92090503,2681.6,2680.9,3.00669657]
[1724726914432,1.57713377,2681.4,2680.9,3.00669657]
[1724726914733,1.57713377,2681.4,2680.9,7.63866323]
[1724726915976,1.55600503,2681.4,2681.0,3.72983]
[1724726920674,1.55600503,2681.4,2680.6,0.952]
[1724726920675,1.55600503,2681.1,2680.6,0.952]
[1724726920970,1.55600503,2681.1,2680.6,3.95869657]
[1724726921119,1.55600503,2681.1,2680.7,4.87234266]
[1724726921424,1.55600503,2681.1,2680.7,4.87227266]
[1724726923715,1.55600503,2681.1,2680.7,1.14198266]
[1724726923915,1.55600503,2681.1,2680.7,4.87231266]
[1724726924415,1.55600503,2681.1,2680.9,3.00669657]
[1724726924598,4.55600503,2681.2,2680.9,6.73677657]
[1724726925330,1.55600503,2681.1,2680.9,6.73677657]
[1724726925828,1.55600503,2681.1,2680.9,3.00669657]
[1724726926030,1.55600503,2681.1,2681.0,3.72995]
[1724726926236,1.55600503,2681.2,2681.0,3.72995]
[1724726926385,1.55600503,2681.3,2681.1,2.2821]
[1724726926588,1.55600503,2681.5,2681.2,3.60790157]
[1724726926846,1.55600503,2681.5,2681.2,3.00669657]
[1724726927123,1.55600503,2681.4,2681.2,3.00669657]
[1724726928332,1.55600503,2681.3,2681.2,3.00669657]
[1724726929091,1.94357923,2681.3,2681.2,3.00669657]
[1724726929421,12.8438171,2681.8,2681.2,3.00669657]
[1724726929740,3.72953,2681.3,2680.6,0.952]
[1724726929902,1.55749717,2680.8,2680.6,0.952]
[1724726930108,1.55749717,2680.7,2680.6,0.952]
[1724726930309,1.55749717,2680.7,2680.6,2.32221366]
[1724726931297,1.94687147,2680.8,2680.6,2.32221366]
[1724726931529,1.55822369,2680.7,2680.6,0.952]
[1724726931688,1.94687147,2680.7,2680.6,0.952]
[1724726931890,5.33639459,2680.9,2680.6,0.952]
[1724726932328,1.94764114,2680.7,2680.6,0.952]
[1724726934198,1.94754246,2680.7,2680.6,0.952]
[1724726936112,1.94754246,2680.8,2680.6,0.952]
[1724726936440,1.55742801,2680.7,2680.6,0.952]
[1724726937005,1.94754246,2680.8,2680.6,0.952]
[1724726937205,1.55722704,2680.7,2680.6,6.9646]
[1724726937408,1.55722704,2680.8,2680.7,3.73036]
[1724726938615,1.55722704,2680.8,2680.6,4.00303166]
[1724726938831,1.55688089,2680.7,2680.6,3.2341]
[1724726939003,1.55688089,2680.8,2680.6,3.2341]
[1724726939206,1.55688089,2680.8,2680.6,6.96457]
[1724726939445,1.55688089,2680.8,2680.7,3.00669657]
[1724726941028,1.55688089,2680.8,2680.6,0.952]
[1724726941342,1.55693537,2680.8,2680.7,3.00669657]
[1724726941510,1.55693537,2680.8,2680.7,9.89647623]
[1724726941707,1.55693537,2680.8,2680.7,6.16611623]
[1724726941907,5.33525997,2681.2,2680.7,6.16611623]
[1724726941908,1.55693537,2680.9,2680.7,6.16611623]
[1724726942438,1.55693537,2681.0,2680.7,6.16611623]
[1724726942803,1.55693537,2680.9,2680.7,5.39719657]
[1724726943000,1.55693537,2680.9,2680.7,3.00669657]
[1724726943201,1.55693537,2680.8,2680.7,3.00669657]
[1724726943627,1.55693537,2680.9,2680.7,3.00669657]
[1724726945043,1.55693537,2680.8,2680.7,3.00669657]
[1724726945250,1.55693537,2680.8,2680.6,0.952]
[1724726945544,1.55693537,2680.7,2680.6,0.952]
[1724726947132,1.94614728,2680.7,2680.6,0.952]
[1724726947345,2.6955524,2680.7,2680.6,0.952]
[1724726948028,2.37286891,2680.7,2680.6,0.952]
[1724726948232,1.94471651,2680.7,2680.6,0.952]
[1724726950114,3.0,2680.8,2680.6,0.952]
[1724726950320,1.9443835,2680.7,2680.6,0.952]
[1724726951257,1.94407845,2680.7,2680.6,0.952]
[1724726953656,1.94407845,2680.8,2680.6,0.952]
[1724726953958,1.94407845,2680.8,2680.7,1.25286406]
[1724726954257,1.94407845,2680.8,2680.6,0.952]
[1724726954429,1.55634222,2680.7,2680.6,0.952]
[1724726955426,1.94407845,2680.8,2680.6,0.952]
[1724726955629,0.72769726,2680.8,2680.6,0.952]
[1724726955854,1.94498949,2680.7,2680.6,0.952]
[1724726956075,1.94498639,2680.7,2680.6,0.952]
[1724726956282,5.35403399,2680.9,2680.6,0.952]
[1724726956479,2.33289414,2680.8,2680.6,0.952]
[1724726956631,2.33412639,2680.8,2680.6,0.952]
[1724726957366,2.33412639,2680.7,2680.6,0.952]
[1724726958499,2.3051,2680.8,2680.6,0.952]
[1724726958500,2.33412639,2680.8,2680.6,0.952]
[1724726958857,5.33412639,2680.8,2680.6,0.952]
[1724726959032,2.33412639,2680.8,2680.6,0.952]
[1724726960382,4.63922639,2680.8,2680.6,0.952]
[1724726960585,6.73036,2680.7,2680.6,0.952]
[1724726961260,9.45350746,2680.7,2680.6,0.952]
[1724726961957,16.22673,2680.7,2680.6,0.952]
[1724726962159,23.17380794,2680.7,2680.6,0.952]
[1724726962358,19.95709,2680.7,2680.6,0.952]
[1724726962670,20.34573336,2680.7,2680.6,0.952]
[1724726962873,24.21771697,2680.7,2680.6,0.952]
[1724726963653,20.34573336,2680.7,2680.6,0.952]
[1724726965754,24.21771697,2680.7,2680.6,0.952]
[1724726965951,32.68922136,2680.7,2680.6,0.952]
[1724726966191,30.40582636,2680.7,2680.6,0.952]
[1724726967691,53.11598654,2680.7,2680.6,0.952]
[1724726967869,46.48536154,2680.7,2680.6,0.952]
[1724726968064,43.27520136,2680.7,2680.6,0.952]
[1724726968393,47.00556136,2680.7,2680.6,0.952]
[1724726968590,50.21539577,2680.7,2680.6,0.952]
[1724726969452,47.00556136,2680.7,2680.6,0.952]
[1724726969652,50.21539577,2680.7,2680.6,0.952]
[1724726970463,47.00556136,2680.7,2680.6,0.952]
[1724726970759,3.732,2679.6,2679.3,2.4808]
[1724726971059,1.94039415,2679.4,2678.9,2.4808]
[1724726971367,1.55216812,2679.3,2678.9,2.4808]
[1724726971685,3.0,2679.3,2678.9,2.72888]
[1724726971869,1.55216812,2679.4,2678.9,2.72888]
[1724726971870,4.55216812,2679.4,2678.9,2.72888]
[1724726972676,1.55216812,2679.4,2678.9,2.72888]
[1724726973603,1.57330411,2679.5,2679.1,3.00621043]
[1724726973902,2.13739487,2679.7,2679.3,2.4808]
[1724726974108,1.55216812,2679.9,2679.4,3.00621043]
[1724726974402,1.55216812,2679.9,2679.5,2.4808]
[1724726974907,3.73163,2679.8,2679.5,2.4808]
[1724726975204,5.28379812,2679.8,2679.5,2.4808]
[1724726975411,3.0,2679.7,2679.5,2.4808]
[1724726975781,6.73181,2679.7,2679.2,3.02950104]
[1724726976086,3.73191,2679.6,2679.2,2.4808]
[1724726976290,3.73191,2679.6,2678.2,3.73381]
[1724726976291,3.73258,2679.2,2678.6,2.4808]
[1724726976481,3.0,2679.1,2678.6,2.4808]
[1724726976865,3.73234,2679.3,2678.6,2.4808]
[1724726976866,3.0,2679.2,2678.6,2.4808]
[1724726977065,3.0,2679.2,2678.7,0.621422]
[1724726977678,6.73247,2679.2,2678.7,0.621422]
[1724726977877,3.0,2679.2,2678.6,2.4808]
[1724726978613,6.73249,2679.2,2678.6,2.4808]
[1724726978993,3.0,2679.2,2678.6,2.4808]
[1724726980402,3.0,2679.2,2678.6,6.21409]
[1724726980908,3.0,2679.2,2679.1,2.4808]
[1724726981115,0.02113445,2679.4,2679.1,2.4808]
[1724726982191,3.0,2679.5,2679.1,2.4808]
[1724726983223,6.73207,2679.5,2679.1,2.4808]
[1724726983693,3.73226,2679.4,2679.1,2.4808]
[1724726984008,1.55216812,2680.0,2679.4,2.4808]
[1724726984511,3.73201,2679.6,2678.9,2.4808]
[1724726984710,0.02113861,2679.5,2678.9,2.4808]
[1724726984913,0.02113861,2679.5,2678.9,3.102195]
[1724726985121,1.55216812,2679.8,2679.3,2.4808]
[1724726985416,1.55216812,2679.8,2679.3,6.21309]
[1724726985417,3.0,2679.8,2679.3,6.21309]
[1724726985583,3.0,2679.8,2679.3,2.4808]
[1724726986099,3.02113861,2679.9,2679.3,2.4808]
[1724726986407,3.02113861,2679.9,2679.3,3.40276004]
[1724726986913,3.02113861,2679.9,2679.3,7.13506004]
[1724726987111,0.02113861,2679.9,2679.3,7.13506004]
[1724726987415,0.02113861,2679.9,2679.5,2.4808]
[1724726992077,1.57330673,2679.9,2679.5,2.4808]
[1724726992391,4.57330673,2679.9,2679.5,2.4808]
[1724726992798,1.55216812,2679.8,2679.3,2.4808]
[1724726993003,4.55216812,2679.8,2679.3,2.4808]
[1724726993335,1.55216812,2679.7,2679.3,2.4808]
[1724726993696,1.55216812,2679.6,2679.3,2.4808]
[1724726993929,4.55216812,2679.6,2679.3,2.4808]
[1724726994134,3.0,2679.6,2679.3,2.4808]
[1724726994286,4.55216812,2679.7,2679.3,2.4808]
[1724726994477,3.0,2679.7,2679.3,2.4808]
[1724726994681,1.55216812,2679.7,2679.3,2.4808]
[1724726994879,4.55216812,2679.7,2679.3,2.4808]
[1724726995281,1.55216812,2679.7,2679.3,2.4808]
[1724726995732,1.55216812,2679.6,2679.3,2.4808]
[1724726996225,1.55216812,2679.7,2679.3,2.4808]
[1724726997031,3.73246,2679.2,2678.6,2.4808]
[1724726997234,1.55216812,2679.3,2678.6,2.4808]
[1724726997380,0.02113362,2679.2,2678.6,2.4808]
[1724726997581,1.57330174,2679.2,2678.6,2.4808]
[1724726998016,4.57330174,2679.2,2678.6,2.4808]
[1724726999125,4.57330174,2679.2,2678.6,3.40283604]
[1724727000633,1.55216812,2679.1,2678.6,3.40283604]
[1724727000787,4.55216812,2679.1,2678.6,3.40283604]
[1724727001415,4.55216812,2679.1,2678.6,2.4808]
[1724727002537,1.55216812,2679.0,2678.6,2.4808]
[1724727002888,1.55216812,2679.0,2678.6,6.21408]
[1724727003204,1.55216812,2679.0,2678.6,2.4808]
[1724727003384,1.55216812,2678.9,2678.6,2.4808]
[1724727005502,1.55216812,2678.8,2678.6,2.4808]
[1724727009238,1.55216812,2678.7,2678.6,2.4808]
[1724727010506,1.55216812,2678.8,2678.6,2.4808]
[1724727012365,1.55216812,2679.1,2678.8,2.4075]
[1724727012680,1.94704981,2679.5,2679.3,3.73231]
[1724727012963,1.94704981,2679.5,2679.2,6.13988]
[1724727012964,1.55819759,2679.4,2679.2,6.13988]
[1724727013122,1.55819759,2679.4,2679.3,3.00621043]
[1724727020775,1.94802774,2679.4,2679.3,3.00621043]
[1724727021127,1.94802774,2679.4,2679.2,2.4075]
[1724727021368,1.55828735,2679.3,2679.2,2.4075]
[1724727021580,0.35063151,2679.3,2678.7,9.23185043]
[1724727021732,1.55819404,2678.9,2678.7,5.49871043]
[1724727022493,1.55819404,2678.8,2678.5,2.4925]
[1724727022798,1.55819404,2678.8,2678.2,2.4925]
[1724727022799,1.55819404,2678.7,2678.2,2.4925]
[1724727022955,1.55819404,2678.4,2678.2,2.4925]
[1724727023303,1.55819404,2678.3,2678.2,2.4925]
[1724727023463,1.94774255,2678.5,2678.2,2.4925]
[1724727023464,1.55819404,2678.4,2678.2,2.4925]
[1724727024757,1.55819404,2678.5,2678.2,2.4925]
[1724727025185,1.55819404,2678.4,2678.2,2.4925]
[1724727025586,1.55819404,2678.5,2678.2,2.4925]
[1724727026254,1.55819404,2678.4,2678.2,2.4925]
[1724727026600,1.55819404,2678.5,2678.2,2.4925]
[1724727027463,1.55819404,2678.5,2678.1,6.74020043]
[1724727028563,1.55819404,2678.5,2678.1,10.47410043]
[1724727028769,1.55819404,2678.6,2678.4,6.73978043]
[1724727028963,1.55819404,2678.7,2678.4,3.00621043]
[1724727029566,1.55819404,2678.6,2678.4,3.00621043]
[1724727030018,1.55819404,2678.7,2678.4,7.65441047]
[1724727030193,1.55819404,2678.7,2678.5,6.14094]
[1724727030673,1.94590311,2678.9,2678.5,6.14094]
[1724727030674,1.55819404,2678.8,2678.5,6.14094]
[1724727030875,4.55819404,2678.8,2678.5,6.14094]
[1724727031074,1.55819404,2678.7,2678.5,6.14094]
[1724727031276,1.55819404,2678.7,2678.5,2.4076]
[1724727034281,1.55819404,2678.8,2678.5,2.4076]
[1724727034484,1.55819404,2678.9,2678.5,3.32234204]
[1724727036740,1.55819404,2678.9,2678.5,2.4076]
[1724727036918,1.55819404,2678.8,2678.5,2.4076]
[1724727037739,1.55819404,2678.9,2678.5,2.4076]
[1724727038112,1.55819404,2678.9,2678.5,6.14102]
[1724727038649,1.55819404,2678.8,2678.5,6.14102]
[1724727038959,1.55819404,2679.0,2678.7,9.14696043]
[1724727039124,1.55819404,2679.1,2678.9,3.73287]
[1724727039310,1.55819404,2679.1,2678.7,9.14685043]
[1724727039515,1.55819404,2679.0,2678.7,9.14685043]
[1724727040418,1.55819404,2679.1,2678.7,12.87992043]
[1724727040646,1.55819404,2679.1,2678.8,1.35835005]
[1724727040856,1.55819404,2679.0,2678.8,1.35835005]
[1724727041639,1.55819404,2679.0,2678.8,5.09134005]
[1724727042171,1.55819404,2679.0,2678.8,1.35835005]
[1724727042330,1.55819404,2679.0,2678.8,5.09135005]
[1724727042648,1.55819404,2679.2,2679.0,3.73264]
[1724727042945,1.55819404,2679.3,2679.1,3.00621043]
[1724727043511,1.55819404,2679.4,2679.2,6.13996]
[1724727043711,1.55819404,2679.5,2679.4,3.73217]
[1724727043936,1.55819404,2679.5,2679.4,6.73838043]
[1724727044335,1.55819404,2679.6,2679.4,6.73838043]
[1724727045041,9.227456,2679.8,2679.4,6.73838043]
[1724727045042,1.55819404,2679.7,2679.4,6.73838043]
[1724727045224,1.55819404,2679.7,2679.4,3.00621043]
[1724727045424,1.947456,2679.8,2679.4,3.00621043]
[1724727045425,1.55819404,2679.6,2679.4,3.00621043]
[1724727046831,1.55819404,2679.7,2679.4,3.00621043]
[1724727049137,1.55819404,2679.6,2679.4,3.00621043]
[1724727049337,1.55819404,2679.7,2679.4,3.00621043]
[1724727050257,1.55819404,2679.6,2679.4,3.00621043]
[1724727050575,1.55819404,2680.1,2679.9,2.4076]
[1724727050799,1.55819404,2680.1,2680.0,3.00621043]
[1724727051137,1.55819404,2680.2,2680.0,3.00621043]
[1724727051636,1.55819404,2680.3,2680.0,3.00621043]
[1724727052174,1.55819404,2680.2,2680.0,3.00621043]
[1724727052676,1.55819404,2680.1,2679.4,3.73213]
[1724727052973,1.55589585,2679.8,2679.3,2.4076]
[1724727053178,1.55589585,2679.9,2679.3,2.4076]
[1724727053787,1.55589585,2679.9,2679.4,3.73217]
[1724727053974,1.55589585,2679.9,2679.4,7.46418]
[1724727054152,1.55589585,2679.9,2679.4,3.73209]
[1724727054353,1.55589585,2679.9,2679.5,6.73824043]
[1724727054574,1.55589585,2679.9,2679.6,3.73181]
[1724727054873,1.55589585,2680.0,2679.7,2.4076]
[1724727055074,1.55589585,2680.0,2679.7,6.13931]
[1724727055373,4.55589585,2680.0,2679.7,6.13931]
[1724727055938,1.55589585,2680.0,2679.7,6.13931]
[1724727056851,1.55589585,2680.0,2679.7,2.4076]
[1724727059172,4.55589585,2680.1,2679.7,2.4076]
[1724727059378,4.55589585,2680.1,2679.7,6.13935]
[1724727059543,4.55589585,2680.1,2679.8,6.73779043]
[1724727059752,1.55589585,2680.2,2679.9,3.73138]
[1724727059956,4.94395331,2680.4,2679.9,3.73138]
[1724727059957,1.55589585,2680.3,2679.9,3.73138]
[1724727060376,1.55589585,2680.3,2680.0,3.73132]
[1724727060616,4.55589585,2680.4,2680.1,3.00621043]
[1724727060910,1.55589585,2680.3,2680.1,5.27401043]
[1724727061265,1.55589585,2680.4,2680.1,5.27401043]
[1724727062402,4.55589585,2680.5,2680.1,9.00512043]
[1724727062807,1.55589585,2680.4,2680.1,9.00512043]
[1724727063112,4.55589585,2680.5,2680.1,5.27401043]
[1724727063913,1.55589585,2680.5,2680.1,5.27401043]
[1724727064282,1.55589585,2680.5,2680.1,9.00518043]
[1724727064478,1.55589585,2680.5,2680.1,5.27401043]
[1724727065369,4.55589585,2680.6,2680.1,5.78442154]
[1724727066063,1.55589585,2680.5,2680.1,5.78442154]
[1724727066568,4.55589585,2680.6,2680.1,5.78442154]
[1724727068500,4.55589585,2680.6,2680.1,2.77821111]
[1724727068671,4.55589585,2680.6,2680.1,2.2678]
[1724727069409,4.55589585,2680.6,2680.2,3.73106]
[1724727069610,1.55589585,2680.6,2680.1,2.2678]
[1724727069906,1.55589585,2680.6,2679.8,5.27401043]
[1724727069907,5.28661585,2680.5,2679.8,5.27401043]
[1724727070613,3.0,2680.4,2679.8,9.00561043]
[1724727070785,4.55589585,2680.4,2679.8,9.00561043]
[1724727070980,3.0,2680.4,2679.8,9.00561043]
[1724727072513,4.55589585,2680.5,2679.8,10.35434484]
[1724727072719,4.55589585,2680.5,2679.8,14.08587484]
[1724727073416,1.55589585,2680.4,2679.9,3.73145]
[1724727073621,4.55589585,2680.4,2679.9,3.73145]
[1724727074101,1.55589585,2680.4,2679.9,3.73145]
[1724727077386,3.0,2680.5,2679.9,3.73145]
[1724727077619,3.0,2680.6,2679.9,3.73145]
[1724727078419,3.0,2680.6,2680.3,3.73091]
[1724727078620,3.0,2680.8,2680.2,3.00621043]
[1724727078921,3.0,2680.8,2680.0,6.22203]
[1724727078922,2.3112,2680.7,2680.0,6.22203]
[1724727079896,2.3112,2680.7,2680.1,3.73117]
[1724727080101,3.0,2680.8,2680.1,7.46228]
[1724727080298,3.0,2680.8,2680.1,7.46222]
[1724727080893,3.0,2680.8,2680.1,3.73111]
[1724727081117,3.0,2680.8,2680.1,7.46223]
[1724727081725,3.0,2680.8,2680.1,3.73111]
[1724727082125,3.0,2680.8,2680.1,6.73732043]
[1724727082620,3.0,2680.8,2680.1,7.66012247]
[1724727082821,3.0,2680.8,2680.2,3.73104]
[1724727083027,3.0,2680.8,2680.1,10.46844043]
[1724727083392,3.0,2680.8,2680.2,3.73106]
[1724727083793,3.0,2680.8,2680.3,3.73081]
[1724727087090,3.0,2680.8,2680.3,7.46165]
[1724727087430,3.0,2680.8,2680.4,2.4907]
[1724727088929,0.5850787,2681.2,2680.5,10.46733043]
[1724727089232,11.02675926,2681.3,2680.6,0.07459967]
[1724727089599,11.02675926,2681.3,2680.5,10.46730043]
[1724727089796,7.29717926,2681.3,2680.8,3.7302]
[1724727090014,7.29717926,2681.3,2681.1,1.25233664]
[1724727090233,3.0,2681.2,2681.1,1.25233664]
[1724727090425,0.01717926,2681.3,2681.1,1.25233664]
[1724727091094,4.45687038,2681.6,2681.1,1.25233664]
[1724727091403,3.87198361,2681.6,2681.5,1.25233664]
[1724727092001,3.87198361,2681.6,2681.3,3.00456444]
[1724727092337,3.87198361,2681.6,2681.4,2.4164]
[1724727093126,3.87198361,2681.6,2681.5,3.72925]
[1724727093714,3.87198361,2681.6,2681.5,7.4585]
[1724727094038,3.87198361,2681.6,2681.5,9.8749]
[1724727094230,1.55572991,2681.9,2681.6,3.72898]
[1724727094413,1.55572991,2682.0,2681.8,3.00456444]
[1724727094620,1.55572991,2682.0,2681.8,3.07913291]
[1724727095029,1.55572991,2682.0,2681.8,3.00456444]
[1724727095537,4.55572991,2682.1,2681.8,3.00456444]
[1724727096420,3.0,2682.1,2681.8,3.00456444]
[1724727096606,4.55572991,2682.2,2681.8,3.77666418]
[1724727097819,1.55572991,2682.2,2681.8,3.77666418]
[1724727098019,4.57290917,2682.3,2681.8,3.77666418]
[1724727098457,3.72831,2682.2,2681.5,2.4164]
[1724727098668,1.55572991,2682.0,2681.2,2.4164]
[1724727099020,4.55572991,2682.0,2681.2,2.4164]